fUST/lending_fUST_20250630
["ID","MTS","AMOUNT","RATE_DAILY","PERIOD"]
[368583689,1751215852046,-1443.48,0.0002058,2]
[368583690,1751215852055,-460.0,0.0002058,2]
[368583691,1751215852064,-460.0,0.0002058,2]
[368583692,1751215852073,-460.0,0.0002058,2]
[368583693,1751215852082,-460.0,0.0002058,2]
[368583694,1751215852091,-1255.93,0.0002058,2]
[368583695,1751215852100,-460.0,0.0002058,2]
[368583696,1751215852109,-460.0,0.0002058,2]
[368583697,1751215852118,-691.24,0.0002058,2]
[368583698,1751215852127,-460.0,0.0002058,2]
[368583699,1751215852136,-460.0,0.0002058,2]
[368583700,1751215852145,-580.78,0.0002058,2]
[368583701,1751215852155,-889.24,0.00020581,2]
[368583702,1751215852164,-460.0,0.00020581,2]
[368583703,1751215852173,-460.0,0.00020581,2]
[368583704,1751215852182,-460.0,0.00020581,2]
[368583705,1751215852191,-585.05,0.00020581,2]
[368583706,1751215852201,-460.0,0.00020581,2]
[368583707,1751215852211,-460.0,0.00020581,2]
[368583708,1751215852220,-3178.03,0.00020581,2]
[368583709,1751215852229,-640.96,0.00020581,2]
[368583710,1751215852238,-1063.57,0.00020581,2]
[368583711,1751215852248,-460.0,0.00020581,2]
[368583712,1751215852257,-460.0,0.00020581,2]
[368583713,1751215852267,-703.44,0.00020581,2]
[368583714,1751215852276,-1251.33,0.00020581,2]
[368583715,1751215852285,-460.0,0.00020582,2]
[368583716,1751215852295,-460.0,0.00020582,2]
[368583717,1751215852304,-524.45,0.00020582,2]
[368583718,1751215852313,-546.38,0.00020582,2]
[368583719,1751215852322,-460.0,0.00020582,2]
[368583720,1751215852332,-460.0,0.00020582,2]
[368583721,1751215852341,-460.0,0.00020582,2]
[368583722,1751215852350,-4014.48,0.00020582,2]
[368583723,1751215852359,-460.0,0.00020582,2]
[368583724,1751215852368,-1201.4,0.00020582,2]
[368583725,1751215852377,-460.0,0.00020582,2]
[368583726,1751215852386,-460.0,0.00020582,2]
[368583727,1751215852396,-460.0,0.00020583,2]
[368583728,1751215852405,-558.82,0.00020583,2]
[368583729,1751215852415,-915.56,0.00020583,2]
[368583730,1751215852424,-460.0,0.00020583,2]
[368583731,1751215852433,-944.44,0.00020583,2]
[368583732,1751215852442,-2638.73,0.00020583,2]
[368583733,1751215852451,-460.0,0.00020583,2]
[368583734,1751215852461,-763.42,0.00020583,2]
[368583735,1751215852470,-1286.76,0.00020583,2]
[368583736,1751215852479,-867.17,0.00020583,2]
[368583737,1751215852488,-350.15232573,0.00020585,2]
[368583738,1751215852498,-1132.72,0.00020585,2]
[368583739,1751215852507,-4987.53,0.000206,2]
[368583740,1751215852516,-569.0,0.00020627,2]
[368583741,1751215852526,-569.0,0.00020703,2]
[368583742,1751215852535,-576.839,0.00020738,2]
[368583743,1751215852543,-177.92820716,0.00020738,2]
[368583744,1751215852552,-4144.83784459,0.00020762,3]
[368583745,1751215852561,-569.0,0.00020828,2]
[368583746,1751215852570,-460.0,0.00020853,2]
[368583747,1751215852579,-460.0,0.00020853,2]
[368583748,1751215852588,-1691.12,0.00020853,2]
[368583749,1751215852599,-460.0,0.00020853,2]
[368583750,1751215852608,-2518.13,0.00020853,2]
[368583751,1751215852618,-460.0,0.00020854,2]
[368583752,1751215852628,-281.71746863,0.00020854,2]
[368583753,1751215852637,-2466.97,0.00020854,2]
[368583754,1751215852648,-516.73,0.00020854,2]
[368583755,1751215852658,-460.0,0.00020854,2]
[368583756,1751215852667,-460.0,0.00020854,2]
[368583757,1751215852677,-2711.1,0.00020854,2]
[368583758,1751215852686,-2437.35,0.00020854,2]
[368583759,1751215852695,-550.98,0.00020854,2]
[368583760,1751215852705,-386.32823257,0.00020854,2]
[368583761,1751215852715,-2633.15,0.00020854,2]
[368583762,1751215852724,-460.0,0.00020854,2]
[368583763,1751215852733,-460.0,0.00020854,2]
[368583764,1751215852743,-829.51,0.00020854,2]
[368583765,1751215852752,-460.0,0.00020854,2]
[368583766,1751215852762,-1443.48,0.00020854,2]
[368583767,1751215852773,-460.0,0.00020854,2]
[368583768,1751215852784,-460.0,0.00020854,2]
[368583769,1751215852794,-460.0,0.00020854,2]
[368583770,1751215852803,-460.0,0.00020854,2]
[368583771,1751215852813,-1255.93,0.00020854,2]
[368583772,1751215852822,-460.0,0.00020854,2]
[368583773,1751215852832,-460.0,0.00020854,2]
[368583774,1751215852842,-691.24,0.00020854,2]
[368583775,1751215852851,-460.0,0.00020854,2]
[368583776,1751215852861,-460.0,0.00020854,2]
[368583777,1751215852871,-580.78,0.00020854,2]
[368583778,1751215852880,-889.24,0.00020855,2]
[368583779,1751215852890,-460.0,0.00020855,2]
[368583780,1751215852899,-460.0,0.00020855,2]
[368583781,1751215852909,-460.0,0.00020855,2]
[368583782,1751215852918,-585.05,0.00020855,2]
[368583783,1751215852928,-460.0,0.00020855,2]
[368583784,1751215852938,-460.0,0.00020855,2]
[368583785,1751215852947,-3178.03,0.00020855,2]
[368583786,1751215852957,-640.96,0.00020855,2]
[368583787,1751215852967,-1063.57,0.00020855,2]
[368583788,1751215852976,-460.0,0.00020855,2]
[368583789,1751215852986,-460.0,0.00020855,2]
[368583790,1751215852995,-703.44,0.00020855,2]
[368583791,1751215853005,-1251.33,0.00020855,2]
[368583792,1751215853014,-460.0,0.00020856,2]
[368583793,1751215853023,-460.0,0.00020856,2]
[368583794,1751215853032,-524.45,0.00020856,2]
[368583795,1751215853041,-546.38,0.00020856,2]
[368583796,1751215853051,-460.0,0.00020856,2]
[368583797,1751215853060,-460.0,0.00020856,2]
[368583798,1751215853069,-460.0,0.00020856,2]
[368583799,1751215853080,-4014.48,0.00020856,2]
[368583800,1751215853089,-460.0,0.00020856,2]
[368583801,1751215853099,-1201.4,0.00020856,2]
[368583802,1751215853108,-460.0,0.00020856,2]
[368583803,1751215853118,-420.49560583,0.00020856,2]
[368583804,1751215853127,-460.0,0.00020857,2]
[368583805,1751215853137,-558.82,0.00020857,2]
[368583806,1751215853147,-915.56,0.00020857,2]
[368583807,1751215853156,-460.0,0.00020857,2]
[368583808,1751215853167,-944.44,0.00020857,2]
[368583809,1751215853176,-2638.73,0.00020857,2]
[368583810,1751215853187,-460.0,0.00020857,2]
[368583811,1751215853197,-763.42,0.00020857,2]
[368583812,1751215853207,-1286.76,0.00020857,2]
[368583813,1751215853217,-867.17,0.00020857,2]
[368583814,1751215853227,-1132.72,0.00020859,2]
[368583815,1751215853237,-1031.80555798,0.000209,2]
[368583816,1751215853246,-4000.0,0.00020941,4]
[368583817,1751215853256,-507.31055669,0.00020958,15]
[368583818,1751215853266,-4144.83784459,0.00020969,4]
[368583819,1751215853275,-2567.86171457,0.00020984,2]
[368583820,1751215853285,-2489.52,0.00021,2]
[368583821,1751215853294,-404553.8810667,0.00021067,2]
[368583822,1751215853427,-460.0,0.0001921,2]
[368583823,1751215853436,-460.0,0.00019484,2]
[368583824,1751215853445,-221.62173324,0.00019758,2]
[368583825,1751216014530,191.20205662,0.00017835,2]
[368583826,1751216015188,-160.0,0.0001837,2]
[368583827,1751216015215,-27.93381647,0.00018371,2]
[368583828,1751216029915,8896.0260574,0.00017388,2]
[368583829,1751216067716,-173.24742039,0.0001837,2]
[368583830,1751216069308,-126.75257961,0.0001837,2]
[368583831,1751216069329,-132.01919773,0.0001837,2]
[368583832,1751216072093,-234.00196729,0.0001837,2]
[368583834,1751216255520,412.06989226,0.00017985,2]
[368583835,1751216307878,-160.0,0.00018369,2]
[368583836,1751216307900,-47.51568586,0.00018369,2]
[368583837,1751216336595,-132.48431414,0.00018369,2]
[368583838,1751216336618,-75.03137172,0.00018369,2]
[368583839,1751216359431,823.64521256,0.00017375,2]
[368583840,1751216359455,24076.35478744,0.00017375,2]
[368583841,1751216386628,238.978012,0.00017375,2]
[368583845,1751216524200,-274.52604844,0.00018368,2]
[368583851,1751216649416,216.6962633,0.00017373,2]
[368583853,1751216704512,500.0,0.00018068,2]
[368583857,1751216845355,2302.46611631,0.0002465,120]
[368583883,1751217032892,-300.0,0.00018367,2]
[368583884,1751217032903,-560.64,0.00018367,2]
[368583885,1751217032999,-242.36,0.00018367,2]
[368583886,1751217033009,-50000.0,0.00018368,2]
[368583887,1751217033018,-460.0,0.00018368,2]
[368583888,1751217033028,-460.0,0.00018368,2]
[368583890,1751217033037,-460.0,0.00018368,2]
[368583892,1751217033046,-460.0,0.00018368,2]
[368583893,1751217033056,-243.51045502,0.00018368,2]
[368583895,1751217033065,-460.0,0.00018368,2]
[368583898,1751217033075,-460.0,0.00018368,2]
[368583899,1751217033084,-460.0,0.00018368,2]
[368583901,1751217033094,-460.0,0.00018368,2]
[368583902,1751217033103,-460.0,0.00018368,2]
[368583903,1751217033113,-460.0,0.00018368,2]
[368583904,1751217033123,-609.72791554,0.00018368,2]
[368583905,1751217033133,-460.0,0.00018368,2]
[368583906,1751217033142,-176.59429916,0.00018368,2]
[368583907,1751217033152,-460.0,0.00018368,2]
[368583908,1751217033161,-460.0,0.00018368,2]
[368583909,1751217033170,-460.0,0.00018368,2]
[368583910,1751217033182,-460.0,0.00018368,2]
[368583911,1751217033192,-460.0,0.00018368,2]
[368583912,1751217033202,-460.0,0.00018368,2]
[368583913,1751217033211,-460.0,0.00018368,2]
[368583914,1751217033221,-1453.38,0.00018368,2]
[368583915,1751217033230,-460.0,0.00018368,2]
[368583916,1751217033240,-460.0,0.00018368,2]
[368583917,1751217033249,-460.0,0.00018368,2]
[368583918,1751217033258,-460.0,0.00018369,2]
[368583919,1751217033268,-460.0,0.00018369,2]
[368583920,1751217033278,-460.0,0.00018369,2]
[368583921,1751217033288,-460.0,0.00018369,2]
[368583922,1751217033298,-460.0,0.00018369,2]
[368583923,1751217033307,-460.0,0.00018369,2]
[368583924,1751217033317,-460.0,0.00018369,2]
[368583925,1751217033326,-460.0,0.00018369,2]
[368583926,1751217033336,-460.0,0.00018369,2]
[368583927,1751217033345,-460.0,0.00018369,2]
[368583928,1751217033354,-460.0,0.00018369,2]
[368583929,1751217033364,-460.0,0.00018369,2]
[368583930,1751217033373,-460.0,0.00018369,2]
[368583931,1751217033383,-460.0,0.00018369,2]
[368583932,1751217033392,-460.0,0.00018369,2]
[368583933,1751217033402,-460.0,0.00018369,2]
[368583934,1751217033411,-460.0,0.00018369,2]
[368583935,1751217033422,-460.0,0.00018369,2]
[368583936,1751217033431,-460.0,0.00018369,2]
[368583937,1751217033440,-460.0,0.00018369,2]
[368583938,1751217033449,-460.0,0.00018369,2]
[368583939,1751217033459,-272.11459268,0.00018369,2]
[368583940,1751217033469,-460.0,0.00018369,2]
[368583941,1751217033479,-460.0,0.00018369,2]
[368583942,1751217033488,-460.0,0.00018369,2]
[368583943,1751217033498,-460.0,0.00018369,2]
[368583944,1751217033508,-608.60375125,0.00018369,2]
[368583945,1751217033517,-508.35850453,0.00018369,2]
[368583946,1751217033527,-460.0,0.00018369,2]
[368583947,1751217033536,-460.0,0.00018369,2]
[368583948,1751217033546,-460.0,0.00018369,2]
[368583949,1751217033555,-454.9756487,0.00018369,2]
[368583950,1751217033565,-460.0,0.00018369,2]
[368583951,1751217033574,-460.0,0.00018369,2]
[368583952,1751217033584,-404.5425236,0.00018369,2]
[368583953,1751217033594,-1092.87,0.00018369,2]
[368583954,1751217033603,-460.0,0.00018369,2]
[368583955,1751217033615,-460.0,0.00018369,2]
[368583956,1751217033624,-2141.24,0.00018369,2]
[368583957,1751217033634,-494.7,0.00018369,2]
[368583958,1751217033644,-460.0,0.00018369,2]
[368583959,1751217033653,-2351.68,0.00018369,2]
[368583960,1751217033663,-470.09,0.00018369,2]
[368583961,1751217033673,-468.63,0.00018369,2]
[368583962,1751217033683,-460.0,0.00018369,2]
[368583963,1751217033692,-460.0,0.00018369,2]
[368583964,1751217033702,-460.0,0.00018369,2]
[368583965,1751217033711,-460.0,0.00018369,2]
[368583966,1751217033720,-844.86,0.00018369,2]
[368583967,1751217033730,-460.0,0.00018369,2]
[368583968,1751217033739,-2091.43,0.00018369,2]
[368583969,1751217033749,-460.0,0.00018369,2]
[368583970,1751217033758,-460.0,0.00018369,2]
[368583971,1751217033768,-2461.02,0.00018369,2]
[368583972,1751217033777,-2527.06,0.00018369,2]
[368583973,1751217033787,-460.0,0.00018369,2]
[368583974,1751217033797,-1239.26,0.00018369,2]
[368583975,1751217033807,-460.0,0.00018369,2]
[368583976,1751217033816,-460.0,0.00018369,2]
[368583977,1751217033827,-834.91,0.00018369,2]
[368583978,1751217033836,-460.0,0.00018369,2]
[368583979,1751217033846,-460.0,0.00018369,2]
[368583980,1751217033856,-460.0,0.00018369,2]
[368583981,1751217033868,-460.0,0.00018369,2]
[368583982,1751217033878,-460.0,0.00018369,2]
[368583983,1751217033887,-460.0,0.00018369,2]
[368583984,1751217033896,-460.0,0.00018369,2]
[368583985,1751217033906,-460.0,0.00018369,2]
[368583986,1751217033918,-460.0,0.00018369,2]
[368583987,1751217033928,-460.0,0.00018369,2]
[368583988,1751217033937,-588.27,0.00018369,2]
[368583989,1751217033953,-218.19139455,0.00018369,2]
[368583990,1751217033963,-460.0,0.00018369,2]
[368583991,1751217033976,-460.0,0.00018369,2]
[368583992,1751217033985,-460.0,0.00018369,2]
[368583993,1751217033995,-14138.9282624,0.0001837,2]
[368583994,1751217034014,-397.79827281,0.0001837,2]
[368583995,1751217034024,-460.0,0.0001837,2]
[368583996,1751217034033,-460.0,0.0001837,2]
[368583997,1751217034043,-353.69701137,0.0001837,2]
[368583998,1751217034053,-460.0,0.0001837,2]
[368583999,1751217034063,-460.0,0.0001837,2]
[368584000,1751217034072,-460.0,0.0001837,2]
[368584001,1751217034082,-460.0,0.0001837,2]
[368584002,1751217034092,-460.0,0.0001837,2]
[368584003,1751217034101,-373.68196212,0.0001837,2]
[368584004,1751217034112,-460.0,0.0001837,2]
[368584005,1751217034122,-460.0,0.0001837,2]
[368584006,1751217034131,-460.0,0.0001837,2]
[368584007,1751217034141,-540.86,0.0001837,2]
[368584008,1751217034150,-460.0,0.0001837,2]
[368584009,1751217034159,-2759.24,0.0001837,2]
[368584010,1751217034169,-460.0,0.0001837,2]
[368584011,1751217034181,-902.98,0.0001837,2]
[368584012,1751217034190,-632.28,0.0001837,2]
[368584013,1751217034200,-460.0,0.0001837,2]
[368584014,1751217034210,-513.78,0.0001837,2]
[368584015,1751217034219,-610.19,0.0001837,2]
[368584016,1751217034229,-1064.43,0.0001837,2]
[368584017,1751217034238,-432.06618353,0.00018371,2]
[368584018,1751217034248,-464.10713367,0.00018371,2]
[368584019,1751217034259,-460.0,0.00018371,2]
[368584020,1751217034269,-601.87633126,0.00018371,2]
[368584021,1751217034278,-460.0,0.00018371,2]
[368584022,1751217034288,-460.0,0.00018371,2]
[368584023,1751217034297,-973.55,0.00018371,2]
[368584024,1751217034308,-460.0,0.00018371,2]
[368584025,1751217034317,-460.0,0.00018371,2]
[368584026,1751217034327,-2074.91,0.00018371,2]
[368584027,1751217034344,-460.0,0.00018371,2]
[368584028,1751217034354,-781.6,0.00018371,2]
[368584029,1751217034367,-1114.44,0.00018371,2]
[368584030,1751217034377,-663.87,0.00018371,2]
[368584031,1751217034386,-3615.32,0.00018371,2]
[368584032,1751217034399,-753.48,0.00018371,2]
[368584033,1751217034408,-460.0,0.00018372,2]
[368584034,1751217034419,-460.0,0.00018372,2]
[368584035,1751217034433,-460.0,0.00018372,2]
[368584036,1751217034445,-460.0,0.00018372,2]
[368584037,1751217034458,-235.03693794,0.00018372,2]
[368584038,1751217034474,-224.96306206,0.00018372,2]
[368584039,1751217034490,-460.0,0.00018372,2]
[368584040,1751217034501,-460.0,0.00018372,2]
[368584041,1751217034511,-504.71,0.00018372,2]
[368584042,1751217034535,-460.0,0.00018372,2]
[368584043,1751217034546,-506.6,0.00018372,2]
[368584044,1751217034563,-218.3765656,0.00018372,2]
[368584045,1751217034578,-241.6234344,0.00018372,2]
[368584046,1751217034591,-460.0,0.00018372,2]
[368584047,1751217034606,-460.0,0.00018372,2]
[368584048,1751217034617,-460.0,0.00018372,2]
[368584049,1751217034628,-460.0,0.00018372,2]
[368584050,1751217034640,-460.0,0.00018372,2]
[368584051,1751217034652,-460.0,0.00018372,2]
[368584052,1751217034663,-460.0,0.00018372,2]
[368584053,1751217034674,-417.48198895,0.00018372,2]
[368584054,1751217034686,-460.0,0.00018372,2]
[368584055,1751217034697,-460.0,0.00018372,2]
[368584056,1751217034723,-303.46788031,0.00018372,2]
[368584094,1751217038424,-1047.34,0.00018369,2]
[368584096,1751217038435,-156.53211969,0.00018372,2]
[368584098,1751217038446,-460.0,0.00018372,2]
[368584100,1751217038456,-2139.96,0.00018378,3]
[368584102,1751217038467,-1069.98,0.00018378,3]
[368584103,1751217038477,-534.99,0.00018378,3]
[368584105,1751217038487,-267.5,0.00018378,3]
[368584108,1751217038497,-802.51,0.00018378,3]
[368584110,1751217038508,-460.0,0.00018387,2]
[368584112,1751217038519,-1000.0,0.00018387,2]
[368584114,1751217038529,-460.0,0.00018387,2]
[368584116,1751217038538,-460.0,0.00018387,2]
[368584118,1751217038549,-460.0,0.00018387,2]
[368584120,1751217038559,-500.0,0.00018387,2]
[368584122,1751217038569,-312.17935999,0.00018387,2]
[368584124,1751217038582,-460.0,0.00018387,2]
[368584126,1751217038592,-360.42738565,0.00018387,2]
[368584129,1751217038603,-322.85122058,0.00018387,2]
[368584131,1751217038614,-460.0,0.00018387,2]
[368584133,1751217038624,-460.0,0.00018387,2]
[368584135,1751217038633,-460.0,0.00018387,2]
[368584137,1751217038643,-460.0,0.00018387,2]
[368584139,1751217038654,-281.25366821,0.00018387,2]
[368584141,1751217038664,-451.84410237,0.00018387,2]
[368584143,1751217038675,-510.38540525,0.00018387,2]
[368584145,1751217038685,-460.0,0.00018387,2]
[368584147,1751217038695,-460.0,0.00018387,2]
[368584150,1751217038705,-460.0,0.00018387,2]
[368584152,1751217038716,-460.0,0.00018387,2]
[368584154,1751217038726,-460.0,0.00018387,2]
[368584156,1751217038737,-460.0,0.00018387,2]
[368584158,1751217038746,-289.88753324,0.00018387,2]
[368584160,1751217038756,-460.0,0.00018387,2]
[368584162,1751217038765,-460.0,0.00018387,2]
[368584164,1751217038774,-500.0,0.00018387,2]
[368584166,1751217038785,-207.51568586,0.00018387,2]
[368584168,1751217038794,-460.0,0.00018387,2]
[368584170,1751217038804,-460.0,0.00018387,2]
[368584172,1751217038813,-460.0,0.00018387,2]
[368584174,1751217038823,-460.0,0.00018387,2]
[368584176,1751217038833,-346.86969654,0.00018387,2]
[368584178,1751217038842,-460.0,0.00018387,2]
[368584180,1751217038851,-460.0,0.00018387,2]
[368584182,1751217038861,-460.0,0.00018387,2]
[368584184,1751217038871,-460.0,0.00018387,2]
[368584186,1751217038881,-460.0,0.00018387,2]
[368584189,1751217038891,-460.0,0.00018387,2]
[368584191,1751217038900,-460.0,0.00018387,2]
[368584216,1751217038910,-460.0,0.00018387,2]
[368584218,1751217039135,-460.0,0.00018387,2]
[368584221,1751217039148,-460.0,0.00018387,2]
[368584223,1751217039158,-460.0,0.00018387,2]
[368584225,1751217039167,-460.0,0.00018387,2]
[368584227,1751217039180,-247.01192323,0.00018387,2]
[368584229,1751217039189,-460.0,0.00018387,2]
[368584231,1751217039198,-460.0,0.00018387,2]
[368584233,1751217039208,-460.0,0.00018387,2]
[368584235,1751217039218,-460.0,0.00018387,2]
[368584237,1751217039227,-460.0,0.00018387,2]
[368584239,1751217039237,-460.0,0.00018387,2]
[368584241,1751217039246,-460.0,0.00018387,2]
[368584243,1751217039256,-460.0,0.00018387,2]
[368584245,1751217039265,-460.0,0.00018387,2]
[368584247,1751217039274,-460.0,0.00018387,2]
[368584249,1751217039283,-460.0,0.00018387,2]
[368584251,1751217039292,-460.0,0.00018387,2]
[368584253,1751217039301,-460.0,0.00018387,2]
[368584255,1751217039310,-460.0,0.00018387,2]
[368584257,1751217039319,-445.19212717,0.00018387,2]
[368584259,1751217039329,-1092.7,0.00018387,2]
[368584261,1751217039338,-460.0,0.00018387,2]
[368584263,1751217039348,-460.0,0.00018387,2]
[368584265,1751217039357,-460.0,0.00018387,2]
[368584267,1751217039366,-460.0,0.00018387,2]
[368584269,1751217039375,-460.0,0.00018387,2]
[368584271,1751217039385,-460.0,0.00018387,2]
[368584273,1751217039394,-460.0,0.00018387,2]
[368584275,1751217039403,-460.0,0.00018388,2]
[368584277,1751217039412,-461.40700486,0.00018388,2]
[368584279,1751217039421,-400.72824932,0.00018388,2]
[368584281,1751217039430,-460.0,0.00018388,2]
[368584283,1751217039439,-553.9948652,0.00018388,2]
[368584285,1751217039449,-460.0,0.00018388,2]
[368584287,1751217039457,-460.0,0.00018388,2]
[368584289,1751217039466,-460.0,0.00018388,2]
[368584291,1751217039475,-460.0,0.00018388,2]
[368584293,1751217039484,-460.0,0.00018388,2]
[368584295,1751217039493,-577.90426875,0.00018388,2]
[368584297,1751217039502,-460.0,0.00018388,2]
[368584299,1751217039511,-447.03364947,0.00018388,2]
[368584301,1751217039521,-460.0,0.00018388,2]
[368584303,1751217039530,-410.0,0.00018388,2]
[368584305,1751217039539,-460.0,0.00018388,2]
[368584307,1751217039548,-460.0,0.00018388,2]
[368584309,1751217039557,-460.0,0.00018388,2]
[368584311,1751217039567,-460.0,0.00018388,2]
[368584313,1751217039576,-460.0,0.00018388,2]
[368584315,1751217039585,-343.70778224,0.00018388,2]
[368584317,1751217039594,-460.0,0.00018388,2]
[368584319,1751217039603,-460.0,0.00018388,2]
[368584321,1751217039612,-460.0,0.00018388,2]
[368584323,1751217039621,-460.0,0.00018388,2]
[368584325,1751217039630,-500.0,0.00018388,2]
[368584327,1751217039639,-500.0,0.00018388,2]
[368584329,1751217039648,-546.53756985,0.00018388,2]
[368584331,1751217039658,-305.82163287,0.00018388,2]
[368584333,1751217039667,-460.0,0.00018388,2]
[368584335,1751217039676,-460.0,0.00018388,2]
[368584337,1751217039685,-579.58,0.00018388,2]
[368584339,1751217039694,-460.0,0.00018388,2]
[368584341,1751217039703,-460.0,0.00018388,2]
[368584343,1751217039712,-460.0,0.00018388,2]
[368584345,1751217039721,-460.0,0.00018388,2]
[368584347,1751217039730,-460.0,0.00018388,2]
[368584349,1751217039739,-460.0,0.00018388,2]
[368584350,1751217039748,-460.0,0.00018388,2]
[368584352,1751217039758,-460.0,0.00018388,2]
[368584354,1751217039767,-460.0,0.00018388,2]
[368584356,1751217039776,-460.0,0.00018388,2]
[368584358,1751217039785,-460.0,0.00018388,2]
[368584360,1751217039794,-460.0,0.00018388,2]
[368584362,1751217039804,-404.67375038,0.00018388,2]
[368584364,1751217039813,-460.0,0.00018388,2]
[368584366,1751217039822,-460.0,0.00018388,2]
[368584368,1751217039830,-460.0,0.00018388,2]
[368584370,1751217039839,-460.0,0.00018388,2]
[368584372,1751217039848,-460.0,0.00018388,2]
[368584374,1751217039857,-299.88456175,0.00018388,2]
[368584376,1751217039867,-390.38824565,0.0001839,2]
[368584378,1751217039876,-460.0,0.0001839,2]
[368584380,1751217039885,-385.65380767,0.0001839,2]
[368584383,1751217039894,-460.0,0.0001839,2]
[368584386,1751217039904,-500.0,0.0001839,2]
[368584389,1751217039913,-460.0,0.0001839,2]
[368584392,1751217039922,-460.0,0.0001839,2]
[368584395,1751217039932,-460.0,0.0001839,2]
[368584398,1751217039941,-906.17,0.0001839,2]
[368584401,1751217039949,-460.0,0.0001839,2]
[368584404,1751217039958,-541.35247671,0.0001839,2]
[368584407,1751217039967,-2219.58730505,0.00018544,2]
[368584410,1751217039976,-460.0,0.00018642,2]
[368584413,1751217039985,-460.0,0.00018642,2]
[368584416,1751217039994,-460.0,0.00018642,2]
[368584419,1751217040003,-382.87495642,0.00018642,2]
[368584422,1751217040012,-460.0,0.00018642,2]
[368584424,1751217040021,-460.0,0.00018642,2]
[368584427,1751217040031,-460.0,0.00018642,2]
[368584429,1751217040040,-1453.38,0.00018642,2]
[368584431,1751217040050,-460.0,0.00018642,2]
[368584433,1751217040059,-460.0,0.00018643,2]
[368584435,1751217040068,-460.0,0.00018643,2]
[368584437,1751217040077,-460.0,0.00018643,2]
[368584439,1751217040086,-2141.24,0.00018643,2]
[368584441,1751217040095,-494.7,0.00018643,2]
[368584443,1751217040104,-460.0,0.00018643,2]
[368584445,1751217040113,-2351.68,0.00018643,2]
[368584447,1751217040123,-470.09,0.00018643,2]
[368584449,1751217040132,-468.63,0.00018643,2]
[368584451,1751217040141,-460.0,0.00018643,2]
[368584453,1751217040150,-460.0,0.00018643,2]
[368584455,1751217040160,-460.0,0.00018643,2]
[368584457,1751217040169,-460.0,0.00018643,2]
[368584459,1751217040182,-844.86,0.00018643,2]
[368584461,1751217040191,-460.0,0.00018643,2]
[368584463,1751217040200,-2091.43,0.00018643,2]
[368584465,1751217040209,-460.0,0.00018643,2]
[368584467,1751217040218,-460.0,0.00018643,2]
[368584469,1751217040227,-2461.02,0.00018643,2]
[368584471,1751217040236,-2527.06,0.00018643,2]
[368584473,1751217040246,-460.0,0.00018643,2]
[368584475,1751217040257,-1239.26,0.00018643,2]
[368584477,1751217040266,-460.0,0.00018643,2]
[368584479,1751217040275,-460.0,0.00018643,2]
[368584481,1751217040284,-834.91,0.00018643,2]
[368584483,1751217040293,-460.0,0.00018643,2]
[368584485,1751217040302,-460.0,0.00018643,2]